[Event "Live Chess"]
[Site "Chess.com"]
[Date "2023.05.21"]
[Round "-"]
[White "OceanFloater"]
[Black "OleksiyJr1"]
[Result "0-1"]
[WhiteElo "1010"]
[BlackElo "981"]
[TimeControl "300"]
[EndTime "1:08:15 PDT"]
[Termination "OleksiyJr1 won by checkmate"]

1. e4 {[%clk 0:04:54.6]} 1... c5 {[%clk 0:04:54.1]} 2. Nf3 {[%clk 0:04:54.2]}
2... Nc6 {[%clk 0:04:52.8]} 3. Bc4 {[%clk 0:04:52.6]} 3... d6 {[%clk 0:04:51.6]}
4. a3 {[%clk 0:04:52]} 4... e5 {[%clk 0:04:50.4]} 5. b4 {[%clk 0:04:50.8]} 5...
b6 {[%clk 0:04:46.2]} 6. bxc5 {[%clk 0:04:49.7]} 6... bxc5 {[%clk 0:04:46.1]} 7.
Bb5 {[%clk 0:04:48.3]} 7... Bb7 {[%clk 0:04:43.3]} 8. Nc3 {[%clk 0:04:47.9]}
8... Nf6 {[%clk 0:04:42]} 9. Nd5 {[%clk 0:04:46.2]} 9... a6 {[%clk 0:04:38.7]}
10. Ba4 {[%clk 0:04:44.2]} 10... Be7 {[%clk 0:04:34.5]} 11. O-O {[%clk
0:04:39.3]} 11... O-O {[%clk 0:04:32.6]} 12. c3 {[%clk 0:04:35.7]} 12... Nxe4
{[%clk 0:04:30.4]} 13. Nxe7+ {[%clk 0:04:30.6]} 13... Qxe7 {[%clk 0:04:28.2]}
14. Re1 {[%clk 0:04:28.7]} 14... Nf6 {[%clk 0:04:25.6]} 15. Bb2 {[%clk
0:04:23.5]} 15... Nd8 {[%clk 0:04:19.7]} 16. d4 {[%clk 0:04:19.9]} 16... cxd4
{[%clk 0:04:17.3]} 17. cxd4 {[%clk 0:04:18.7]} 17... Bc6 {[%clk 0:04:10.4]} 18.
Bb3 {[%clk 0:04:11]} 18... Bxf3 {[%clk 0:04:03]} 19. Qxf3 {[%clk 0:04:07]} 19...
Rb8 {[%clk 0:03:58.3]} 20. dxe5 {[%clk 0:04:02]} 20... dxe5 {[%clk 0:03:51.6]}
21. Rxe5 {[%clk 0:03:59]} 21... Ne6 {[%clk 0:03:38.8]} 22. h3 {[%clk 0:03:45.9]}
22... Rb6 {[%clk 0:03:34.5]} 23. Qe3 {[%clk 0:03:42.5]} 23... Rfb8 {[%clk
0:03:30]} 24. Bxe6 {[%clk 0:03:32.6]} 24... fxe6 {[%clk 0:03:17.2]} 25. Bd4
{[%clk 0:03:26]} 25... Rb3 {[%clk 0:03:11.3]} 26. Qe2 {[%clk 0:03:20.2]} 26...
R3b6 {[%clk 0:03:04.3]} 27. Bxb6 {[%clk 0:03:18]} 27... Rxb6 {[%clk 0:03:02.5]}
28. a4 {[%clk 0:03:15.3]} 28... Nd5 {[%clk 0:02:59.6]} 29. a5 {[%clk 0:03:12.8]}
29... Rc6 {[%clk 0:02:55.6]} 30. Qxa6 {[%clk 0:03:10.7]} 30... Rxa6 {[%clk
0:02:54]} 31. Kh2 {[%clk 0:03:01.1]} 31... Qd6 {[%clk 0:02:51.1]} 32. f4 {[%clk
0:02:54.5]} 32... Nxf4 {[%clk 0:02:48.5]} 33. Ree1 {[%clk 0:02:48.5]} 33... Nd3+
{[%clk 0:02:46.1]} 34. Kg1 {[%clk 0:02:47]} 34... Nxe1 {[%clk 0:02:45.2]} 35.
Rxe1 {[%clk 0:02:46.4]} 35... Qd4+ {[%clk 0:02:43.7]} 36. Kh1 {[%clk 0:02:44.9]}
36... Rxa5 {[%clk 0:02:41.5]} 37. Kh2 {[%clk 0:02:41.2]} 37... Qf4+ {[%clk
0:02:37.6]} 38. Kh1 {[%clk 0:02:38.4]} 38... Re5 {[%clk 0:02:35.4]} 39. Rb1
{[%clk 0:02:31.5]} 39... Qg3 {[%clk 0:02:26]} 40. Kg1 {[%clk 0:02:22.4]} 40...
Re1+ {[%clk 0:02:23.3]} 41. Rxe1 {[%clk 0:02:18.8]} 41... Qxe1+ {[%clk
0:02:23.2]} 42. Kh2 {[%clk 0:02:18.1]} 42... Qa1 {[%clk 0:02:22.7]} 43. h4
{[%clk 0:02:14]} 43... e5 {[%clk 0:02:21.8]} 44. Kg3 {[%clk 0:02:11.8]} 44... e4
{[%clk 0:02:21.7]} 45. Kf2 {[%clk 0:02:10.3]} 45... Qd4+ {[%clk 0:02:17.1]} 46.
Ke2 {[%clk 0:02:09.1]} 46... e3 {[%clk 0:02:15.8]} 47. g3 {[%clk 0:02:07.7]}
47... Qd2+ {[%clk 0:02:15.2]} 48. Kf3 {[%clk 0:02:06.7]} 48... e2 {[%clk
0:02:14.5]} 49. Kf2 {[%clk 0:02:06.1]} 49... e1=Q+ {[%clk 0:02:13.8]} 50. Kf3
{[%clk 0:02:05]} 50... Qee3+ {[%clk 0:02:13.2]} 51. Kg4 {[%clk 0:02:04.2]} 51...
Qdd4+ {[%clk 0:02:12.4]} 52. Kh3 {[%clk 0:02:03.4]} 52... Qg1 {[%clk 0:02:07.4]}
53. h5 {[%clk 0:01:59.2]} 53... Qh1# {[%clk 0:02:07.2]} 0-1

[Event "Live Chess"]
[Site "Chess.com"]
[Date "2023.05.21"]
[Round "-"]
[White "Tushinskiy"]
[Black "Long1968"]
[Result "1-0"]
[WhiteElo "2188"]
[BlackElo "1005"]
[TimeControl "300"]
[EndTime "1:08:27 PDT"]
[Termination "Tushinskiy won by resignation"]

1. d4 {[%clk 0:04:58.2]} 1... e6 {[%clk 0:04:57.7]} 2. c3 {[%clk 0:04:58.1]}
2... d5 {[%clk 0:04:55.3]} 3. Nf3 {[%clk 0:04:58]} 3... c5 {[%clk 0:04:53]} 4.
Bf4 {[%clk 0:04:57.2]} 4... Nc6 {[%clk 0:04:50.5]} 5. e3 {[%clk 0:04:56.1]} 5...
Bd7 {[%clk 0:04:48.4]} 6. Bd3 {[%clk 0:04:54.9]} 6... Qb6 {[%clk 0:04:46]} 7.
Qc1 {[%clk 0:04:53.1]} 7... cxd4 {[%clk 0:04:43.7]} 8. exd4 {[%clk 0:04:52]}
8... Rc8 {[%clk 0:04:38.5]} 9. Nbd2 {[%clk 0:04:49.8]} 9... Nf6 {[%clk
0:04:25.8]} 10. O-O {[%clk 0:04:47.1]} 10... e5 {[%clk 0:04:17.1]} 11. Bxe5
{[%clk 0:04:42.9]} 11... Ng4 {[%clk 0:04:00.8]} 12. Bg3 {[%clk 0:04:38.2]} 12...
Nb4 {[%clk 0:03:39.1]} 13. Re1+ {[%clk 0:04:36]} 13... Be7 {[%clk 0:03:30.6]}
14. Bb1 {[%clk 0:04:34.6]} 14... Qf6 {[%clk 0:03:00.2]} 15. Bh4 {[%clk
0:04:27.8]} 15... Qxh4 {[%clk 0:02:16]} 16. Nxh4 {[%clk 0:04:22.1]} 16... Kd8
{[%clk 0:02:09]} 17. Nf5 {[%clk 0:04:20]} 17... Bxf5 {[%clk 0:02:01.5]} 18. Bxf5
{[%clk 0:04:17.7]} 18... Nf6 {[%clk 0:01:55.8]} 19. Bxc8 {[%clk 0:04:15.8]}
19... Nd3 {[%clk 0:01:42.5]} 20. Qc2 {[%clk 0:04:13.9]} 20... Nxe1 {[%clk
0:01:38.9]} 21. Rxe1 {[%clk 0:04:13.8]} 21... Re8 {[%clk 0:01:31.6]} 22. Bxb7
{[%clk 0:04:11.3]} 22... Ne4 {[%clk 0:01:22.5]} 23. Nxe4 {[%clk 0:04:08.8]}
23... Bf6 {[%clk 0:01:16.9]} 24. Bxd5 {[%clk 0:04:05.8]} 1-0

[Event "Live Chess"]
[Site "Chess.com"]
[Date "2023.05.21"]
[Round "-"]
[White "ExIsambard"]
[Black "Tilbs_12"]
[Result "1-0"]
[WhiteElo "1936"]
[BlackElo "1566"]
[TimeControl "300"]
[EndTime "1:08:40 PDT"]
[Termination "ExIsambard won on time"]

1. d4 {[%clk 0:04:59]} 1... d5 {[%clk 0:04:59]} 2. Bg5 {[%clk 0:04:57.7]} 2...
Nf6 {[%clk 0:04:56.9]} 3. e3 {[%clk 0:04:57.2]} 3... c5 {[%clk 0:04:54.6]} 4. c3
{[%clk 0:04:56.4]} 4... Bg4 {[%clk 0:04:51.1]} 5. Nf3 {[%clk 0:04:54.4]} 5... e6
{[%clk 0:04:49.4]} 6. Bd3 {[%clk 0:04:53.7]} 6... Nc6 {[%clk 0:04:47.8]} 7. h3
{[%clk 0:04:53.1]} 7... Bxf3 {[%clk 0:04:44]} 8. Qxf3 {[%clk 0:04:51.4]} 8...
Be7 {[%clk 0:04:43.3]} 9. Nd2 {[%clk 0:04:50.5]} 9... cxd4 {[%clk 0:04:39.7]}
10. exd4 {[%clk 0:04:49.7]} 10... O-O {[%clk 0:04:39.2]} 11. h4 {[%clk 0:04:49]}
11... h6 {[%clk 0:04:36.3]} 12. O-O-O {[%clk 0:04:46.6]} 12... e5 {[%clk
0:04:25.5]} 13. Bxf6 {[%clk 0:04:26.8]} 13... Bxf6 {[%clk 0:04:23.2]} 14. dxe5
{[%clk 0:04:16.5]} 14... Nxe5 {[%clk 0:04:22]} 15. Qg3 {[%clk 0:04:15.6]} 15...
Nxd3+ {[%clk 0:04:18.5]} 16. Qxd3 {[%clk 0:04:15.5]} 16... Rc8 {[%clk
0:04:15.2]} 17. Kb1 {[%clk 0:04:13.7]} 17... d4 {[%clk 0:04:09.3]} 18. c4 {[%clk
0:04:12.5]} 18... Re8 {[%clk 0:04:03.6]} 19. g4 {[%clk 0:04:10.4]} 19... Qd6
{[%clk 0:03:38.3]} 20. g5 {[%clk 0:04:07.5]} 20... Be5 {[%clk 0:03:36.4]} 21.
gxh6 {[%clk 0:04:05.8]} 21... g6 {[%clk 0:03:33]} 22. h5 {[%clk 0:03:52.6]}
22... Bf4 {[%clk 0:03:25.4]} 23. h7+ {[%clk 0:03:47]} 23... Kh8 {[%clk
0:03:12.4]} 24. hxg6 {[%clk 0:03:46]} 24... Qxg6 {[%clk 0:03:10.9]} 25. Qxg6
{[%clk 0:03:41.8]} 25... fxg6 {[%clk 0:03:09.3]} 26. Nf3 {[%clk 0:03:40.4]}
26... d3 {[%clk 0:03:02.4]} 27. Rxd3 {[%clk 0:03:36.4]} 27... Rxc4 {[%clk
0:02:57.6]} 28. Nh4 {[%clk 0:03:07.4]} 28... Rc6 {[%clk 0:02:33.8]} 29. Rd7
{[%clk 0:03:01.8]} 29... g5 {[%clk 0:02:05.3]} 30. Nf5 {[%clk 0:02:55.1]} 30...
Rc7 {[%clk 0:02:02.3]} 31. Rhd1 {[%clk 0:02:44]} 31... Rf8 {[%clk 0:01:37.9]}
32. Nh6 {[%clk 0:02:41.8]} 32... Re8 {[%clk 0:01:17.7]} 33. Nf7+ {[%clk
0:02:39]} 33... Kxh7 {[%clk 0:01:13.6]} 34. Nxg5+ {[%clk 0:02:28.2]} 34... Kg6
{[%clk 0:01:12]} 35. Nf3 {[%clk 0:01:44]} 35... Rec8 {[%clk 0:00:59.8]} 36. Rg1+
{[%clk 0:01:36.1]} 36... Kf5 {[%clk 0:00:58.3]} 37. Rxc7 {[%clk 0:01:27.2]}
37... Rxc7 {[%clk 0:00:56.6]} 38. a3 {[%clk 0:01:26.5]} 38... a6 {[%clk
0:00:53.4]} 39. Rg8 {[%clk 0:01:19.4]} 39... Ke4 {[%clk 0:00:52]} 40. Nh4 {[%clk
0:01:13.8]} 40... Kd3 {[%clk 0:00:48]} 41. Rd8+ {[%clk 0:01:10.9]} 41... Ke2
{[%clk 0:00:46.7]} 42. f3 {[%clk 0:01:08.6]} 42... Bg3 {[%clk 0:00:42.1]} 43.
Re8+ {[%clk 0:01:03.9]} 43... Kf2 {[%clk 0:00:38.9]} 44. Nf5 {[%clk 0:00:52.1]}
44... Kxf3 {[%clk 0:00:37.6]} 45. Nd4+ {[%clk 0:00:46.1]} 45... Kg2 {[%clk
0:00:35.4]} 46. Rg8 {[%clk 0:00:44.6]} 46... Kh2 {[%clk 0:00:33.6]} 47. Nf3+
{[%clk 0:00:41.7]} 47... Kh3 {[%clk 0:00:30.7]} 48. Ng5+ {[%clk 0:00:34.2]}
48... Kh2 {[%clk 0:00:28.4]} 49. Rh8+ {[%clk 0:00:31.4]} 49... Kg2 {[%clk
0:00:27.1]} 50. Ne4 {[%clk 0:00:28.6]} 50... Kf3 {[%clk 0:00:23.6]} 51. Nd2+
{[%clk 0:00:23]} 51... Ke2 {[%clk 0:00:22.5]} 52. Nb3 {[%clk 0:00:21.8]} 52...
Be5 {[%clk 0:00:19.6]} 53. Re8 {[%clk 0:00:20.7]} 53... Kf3 {[%clk 0:00:12.9]}
54. Rxe5 {[%clk 0:00:19.7]} 54... Rh7 {[%clk 0:00:11.6]} 55. Rd5 {[%clk
0:00:16.6]} 55... Kf4 {[%clk 0:00:10.5]} 56. Ka2 {[%clk 0:00:16.5]} 56... Ke4
{[%clk 0:00:09.5]} 57. Rd8 {[%clk 0:00:15.2]} 57... Ke5 {[%clk 0:00:08.6]} 58.
Nc5 {[%clk 0:00:14.7]} 58... Kf5 {[%clk 0:00:07.2]} 59. Rd7 {[%clk 0:00:13.6]}
59... Rxd7 {[%clk 0:00:05.4]} 60. Nxd7 {[%clk 0:00:13.5]} 60... Ke4 {[%clk
0:00:05.3]} 61. Nc5+ {[%clk 0:00:12.3]} 61... Kd5 {[%clk 0:00:05.2]} 62. Nxb7
{[%clk 0:00:11.7]} 62... Kc6 {[%clk 0:00:04.8]} 63. Nd8+ {[%clk 0:00:11]} 63...
Kb5 {[%clk 0:00:04]} 64. Ne6 {[%clk 0:00:10.3]} 64... Kc6 {[%clk 0:00:03.1]} 65.
Nd4+ {[%clk 0:00:09.6]} 65... Kc5 {[%clk 0:00:02]} 66. Nc2 {[%clk 0:00:09.2]}
66... Kb5 {[%clk 0:00:01.3]} 67. Kb3 {[%clk 0:00:08.7]} 67... Kc6 {[%clk
0:00:01.2]} 68. a4 {[%clk 0:00:08.1]} 68... Kb6 {[%clk 0:00:01.1]} 69. Nb4
{[%clk 0:00:07.5]} 69... a5 {[%clk 0:00:00.5]} 70. Nd5+ {[%clk 0:00:06.9]} 1-0

[Event "Live Chess"]
[Site "Chess.com"]
[Date "2023.05.21"]
[Round "-"]
[White "ranvir123"]
[Black "EdenHazard8"]
[Result "1-0"]
[WhiteElo "932"]
[BlackElo "1936"]
[TimeControl "300"]
[EndTime "1:09:02 PDT"]
[Termination "ranvir123 won by resignation"]

1. e4 {[%clk 0:04:57]} 1... e5 {[%clk 0:04:59.6]} 2. Nf3 {[%clk 0:04:54.3]} 2...
Nc6 {[%clk 0:04:59.5]} 3. Bb5 {[%clk 0:04:51.5]} 3... a6 {[%clk 0:04:59.1]} 4.
Ba4 {[%clk 0:04:49.9]} 4... Nf6 {[%clk 0:04:57.6]} 5. O-O {[%clk 0:04:46.1]}
5... Be7 {[%clk 0:04:56.3]} 6. Nc3 {[%clk 0:04:42.3]} 6... b5 {[%clk 0:04:54.1]}
7. Bb3 {[%clk 0:04:40.7]} 7... O-O {[%clk 0:04:53.3]} 8. d4 {[%clk 0:04:34.9]}
8... exd4 {[%clk 0:04:51.9]} 9. Nxd4 {[%clk 0:04:31.3]} 9... Bb7 {[%clk
0:04:51.8]} 10. Nxc6 {[%clk 0:04:29.9]} 10... Bxc6 {[%clk 0:04:51.7]} 11. Bg5
{[%clk 0:04:26.3]} 11... Re8 {[%clk 0:04:46.9]} 12. e5 {[%clk 0:04:17.6]} 12...
Ng4 {[%clk 0:04:45.4]} 13. Bxe7 {[%clk 0:04:05.4]} 13... Qxe7 {[%clk 0:04:43.9]}
14. Qxg4 {[%clk 0:03:59.6]} 14... Qxe5 {[%clk 0:04:41.6]} 15. h3 {[%clk
0:03:33.3]} 15... Qf6 {[%clk 0:04:38.2]} 16. Rfe1 {[%clk 0:03:29.2]} 16... Re5
{[%clk 0:04:35.6]} 17. Rxe5 {[%clk 0:03:25.6]} 17... Qxe5 {[%clk 0:04:35.5]} 18.
Qg3 {[%clk 0:03:01.9]} 18... Qc5 {[%clk 0:04:33.1]} 19. Qxc7 {[%clk 0:02:48.8]}
19... Re8 {[%clk 0:04:30]} 20. Qf4 {[%clk 0:02:34.3]} 20... Re7 {[%clk
0:04:08.5]} 21. Qb8+ {[%clk 0:02:17]} 1-0

[Event "Live Chess"]
[Site "Chess.com"]
[Date "2023.05.21"]
[Round "-"]
[White "swingrumbacha"]
[Black "SupremeTactician"]
[Result "1-0"]
[WhiteElo "2572"]
[BlackElo "2280"]
[TimeControl "300"]
[EndTime "1:09:29 PDT"]
[Termination "swingrumbacha won by resignation"]

1. d4 {[%clk 0:04:55.5]} 1... Nf6 {[%clk 0:04:57.6]} 2. c4 {[%clk 0:04:51.9]}
2... e6 {[%clk 0:04:57]} 3. Nc3 {[%clk 0:04:48.9]} 3... Bb4 {[%clk 0:04:55.3]}
4. e3 {[%clk 0:04:45.3]} 4... O-O {[%clk 0:04:53.8]} 5. Bd3 {[%clk 0:04:41.7]}
5... c5 {[%clk 0:04:53.2]} 6. Nf3 {[%clk 0:04:38.1]} 6... cxd4 {[%clk
0:04:17.5]} 7. exd4 {[%clk 0:04:34.8]} 7... d5 {[%clk 0:04:16.2]} 8. O-O {[%clk
0:04:31.3]} 8... dxc4 {[%clk 0:04:13.3]} 9. Bxc4 {[%clk 0:04:28.3]} 9... Nc6
{[%clk 0:04:12.9]} 10. Bg5 {[%clk 0:04:22]} 10... h6 {[%clk 0:04:11.1]} 11. Bh4
{[%clk 0:04:19]} 11... Be7 {[%clk 0:04:09.9]} 12. Re1 {[%clk 0:04:14.9]} 12...
Qb6 {[%clk 0:03:58]} 13. Qd2 {[%clk 0:04:10.4]} 13... Rd8 {[%clk 0:03:55.3]} 14.
Rad1 {[%clk 0:04:05.8]} 14... Qb4 {[%clk 0:03:50.5]} 15. Bb5 {[%clk 0:04:00.3]}
15... a6 {[%clk 0:03:32.5]} 16. a3 {[%clk 0:03:55.9]} 16... Qd6 {[%clk
0:03:26.7]} 17. Bxc6 {[%clk 0:03:50.9]} 17... bxc6 {[%clk 0:03:16.7]} 18. Ne5
{[%clk 0:03:46.7]} 18... c5 {[%clk 0:03:06.3]} 19. Bxf6 {[%clk 0:03:42.7]} 19...
Bxf6 {[%clk 0:03:03.7]} 20. Ne4 {[%clk 0:03:38.6]} 20... Qd5 {[%clk 0:02:40.7]}
21. Nxf6+ {[%clk 0:03:34.2]} 21... gxf6 {[%clk 0:02:39.7]} 22. Qxh6 {[%clk
0:03:29.7]} 22... fxe5 {[%clk 0:02:37]} 23. Rd3 {[%clk 0:03:24.1]} 23... Qe4
{[%clk 0:01:55.2]} 24. Rxe4 {[%clk 0:03:19.8]} 24... f5 {[%clk 0:01:54]} 25. Qf6
{[%clk 0:03:12.4]} 25... Bb7 {[%clk 0:01:50.2]} 26. Rh4 {[%clk 0:03:06.7]} 1-0

[Event "Live Chess"]
[Site "Chess.com"]
[Date "2023.05.21"]
[Round "-"]
[White "KeithArkell"]
[Black "MaximKris"]
[Result "1-0"]
[WhiteElo "2523"]
[BlackElo "1819"]
[TimeControl "300"]
[EndTime "1:10:04 PDT"]
[Termination "KeithArkell won by checkmate"]

1. d4 {[%clk 0:04:57.9]} 1... d5 {[%clk 0:04:58.6]} 2. Nf3 {[%clk 0:04:56.3]}
2... Nf6 {[%clk 0:04:57.4]} 3. c4 {[%clk 0:04:55.7]} 3... e6 {[%clk 0:04:56]} 4.
cxd5 {[%clk 0:04:54.7]} 4... exd5 {[%clk 0:04:55.9]} 5. Nc3 {[%clk 0:04:53.7]}
5... Bf5 {[%clk 0:04:54.5]} 6. Bg5 {[%clk 0:04:52]} 6... c6 {[%clk 0:04:50.4]}
7. e3 {[%clk 0:04:50.5]} 7... h6 {[%clk 0:04:49.1]} 8. Bh4 {[%clk 0:04:47.8]}
8... Nbd7 {[%clk 0:04:47]} 9. Bd3 {[%clk 0:04:46.7]} 9... Bxd3 {[%clk
0:04:43.2]} 10. Qxd3 {[%clk 0:04:46.3]} 10... Bd6 {[%clk 0:04:42.4]} 11. Qf5
{[%clk 0:04:43.6]} 11... Qe7 {[%clk 0:04:39.3]} 12. O-O {[%clk 0:04:38.4]} 12...
O-O-O {[%clk 0:04:37.6]} 13. Bxf6 {[%clk 0:04:35.6]} 13... gxf6 {[%clk
0:04:34.4]} 14. Rfc1 {[%clk 0:04:29.1]} 14... Kb8 {[%clk 0:04:33.2]} 15. Rab1
{[%clk 0:04:27]} 15... Rhg8 {[%clk 0:04:30.9]} 16. a3 {[%clk 0:04:21.6]} 16...
Qe6 {[%clk 0:04:30.2]} 17. Qxe6 {[%clk 0:04:20.6]} 17... fxe6 {[%clk 0:04:30.1]}
18. b4 {[%clk 0:04:20]} 18... e5 {[%clk 0:04:28]} 19. dxe5 {[%clk 0:04:17]}
19... fxe5 {[%clk 0:04:26.9]} 20. e4 {[%clk 0:04:15.3]} 20... d4 {[%clk
0:04:25.1]} 21. Na4 {[%clk 0:04:10.8]} 21... Nb6 {[%clk 0:04:18.9]} 22. Nc5
{[%clk 0:04:06.1]} 22... Bxc5 {[%clk 0:04:17.6]} 23. bxc5 {[%clk 0:04:03.9]}
23... Nd7 {[%clk 0:04:12.3]} 24. Kf1 {[%clk 0:04:01]} 24... Ka8 {[%clk
0:04:08.7]} 25. h3 {[%clk 0:04:00.3]} 25... Nf6 {[%clk 0:04:07.7]} 26. Re1
{[%clk 0:03:54.9]} 26... Rge8 {[%clk 0:04:03.3]} 27. Nh4 {[%clk 0:03:51.9]}
27... Nd7 {[%clk 0:03:59.4]} 28. Rbc1 {[%clk 0:03:48.7]} 28... Rc8 {[%clk
0:03:52.8]} 29. Nf5 {[%clk 0:03:47.1]} 29... b6 {[%clk 0:03:52.1]} 30. Nd6
{[%clk 0:03:46.2]} 30... Red8 {[%clk 0:03:50.4]} 31. Nxc8 {[%clk 0:03:45.3]}
31... Rxc8 {[%clk 0:03:50.3]} 32. cxb6 {[%clk 0:03:44.2]} 32... axb6 {[%clk
0:03:49.8]} 33. a4 {[%clk 0:03:41.9]} 33... c5 {[%clk 0:03:48.4]} 34. Ke2 {[%clk
0:03:39.8]} 34... c4 {[%clk 0:03:45.8]} 35. Red1 {[%clk 0:03:36.2]} 35... c3
{[%clk 0:03:42.7]} 36. Rc2 {[%clk 0:03:13.9]} 36... Rc4 {[%clk 0:03:37.9]} 37.
a5 {[%clk 0:02:56.2]} 37... b5 {[%clk 0:03:35]} 38. f4 {[%clk 0:02:45.9]} 38...
b4 {[%clk 0:03:29.2]} 39. Kd3 {[%clk 0:02:34.1]} 39... Rc5 {[%clk 0:03:09.9]}
40. Rb1 {[%clk 0:02:29.3]} 40... Rb5 {[%clk 0:02:58.8]} 41. Kc4 {[%clk 0:02:27]}
41... Rxa5 {[%clk 0:02:24.4]} 42. fxe5 {[%clk 0:02:21.2]} 42... Nxe5+ {[%clk
0:02:14.9]} 43. Kxd4 {[%clk 0:02:20.3]} 43... Nc6+ {[%clk 0:02:14.1]} 44. Kc4
{[%clk 0:02:19.4]} 44... Re5 {[%clk 0:02:10]} 45. Re2 {[%clk 0:02:15.5]} 45...
Kb7 {[%clk 0:01:57.2]} 46. Rxb4+ {[%clk 0:02:13]} 46... Nxb4 {[%clk 0:01:55]}
47. Kxb4 {[%clk 0:02:12.3]} 47... c2 {[%clk 0:01:53.3]} 48. Rxc2 {[%clk
0:02:11]} 48... Rxe4+ {[%clk 0:01:52.1]} 49. Kc5 {[%clk 0:02:10.5]} 49... Re6
{[%clk 0:01:46.7]} 50. Kd5 {[%clk 0:02:09.6]} 50... Rg6 {[%clk 0:01:40.9]} 51.
g4 {[%clk 0:02:08.8]} 51... Rf6 {[%clk 0:01:33.9]} 52. Ke5 {[%clk 0:02:07.1]}
52... Rf3 {[%clk 0:01:31.2]} 53. h4 {[%clk 0:02:06.4]} 53... Rh3 {[%clk
0:01:22.5]} 54. h5 {[%clk 0:02:04.9]} 54... Rf3 {[%clk 0:01:19.9]} 55. Rc4
{[%clk 0:01:59.1]} 55... Rf1 {[%clk 0:01:12.6]} 56. Rf4 {[%clk 0:01:57.8]} 56...
Ra1 {[%clk 0:01:07.5]} 57. Kf6 {[%clk 0:01:56.4]} 57... Ra6+ {[%clk 0:01:07]}
58. Kg7 {[%clk 0:01:55.7]} 58... Kc7 {[%clk 0:01:05.8]} 59. Rf7+ {[%clk
0:01:54.4]} 59... Kd8 {[%clk 0:01:04.7]} 60. Rf6 {[%clk 0:01:53.3]} 60... Ra4
{[%clk 0:01:03.9]} 61. Rg6 {[%clk 0:01:52.3]} 61... Ke7 {[%clk 0:01:02.3]} 62.
Kxh6 {[%clk 0:01:51.4]} 62... Kf7 {[%clk 0:01:01.7]} 63. Kh7 {[%clk 0:01:50.7]}
63... Kf8 {[%clk 0:00:51.6]} 64. Rf6+ {[%clk 0:01:46.2]} 64... Ke7 {[%clk
0:00:50.2]} 65. g5 {[%clk 0:01:45.4]} 65... Rg4 {[%clk 0:00:47.9]} 66. Kg6
{[%clk 0:01:44.5]} 66... Ke8 {[%clk 0:00:43]} 67. h6 {[%clk 0:01:43.9]} 67...
Rh4 {[%clk 0:00:41.8]} 68. h7 {[%clk 0:01:43.1]} 68... Ke7 {[%clk 0:00:40.3]}
69. Kg7 {[%clk 0:01:40.3]} 69... Rg4 {[%clk 0:00:35.4]} 70. h8=Q {[%clk
0:01:36]} 70... Rxg5+ {[%clk 0:00:34.9]} 71. Rg6 {[%clk 0:01:35.3]} 71... Rxg6+
{[%clk 0:00:33.7]} 72. Kxg6 {[%clk 0:01:34.5]} 72... Ke6 {[%clk 0:00:33.6]} 73.
Qd4 {[%clk 0:01:32.9]} 73... Ke7 {[%clk 0:00:32.4]} 74. Qd5 {[%clk 0:01:32.3]}
74... Kf8 {[%clk 0:00:32.3]} 75. Qd7 {[%clk 0:01:30.6]} 75... Kg8 {[%clk
0:00:31]} 76. Qd8# {[%clk 0:01:30]} 1-0

[Event "Live Chess"]
[Site "Chess.com"]
[Date "2023.05.21"]
[Round "-"]
[White "blunderabit"]
[Black "Denz14"]
[Result "1-0"]
[WhiteElo "1819"]
[BlackElo "1036"]
[TimeControl "300"]
[EndTime "1:10:08 PDT"]
[Termination "blunderabit won by resignation"]

1. e4 {[%clk 0:04:58.3]} 1... e5 {[%clk 0:04:52.9]} 2. Nf3 {[%clk 0:04:56.2]}
2... Nf6 {[%clk 0:04:47]} 3. d4 {[%clk 0:04:52.7]} 3... d6 {[%clk 0:04:42.8]} 4.
dxe5 {[%clk 0:04:50.2]} 4... Nxe4 {[%clk 0:04:40.4]} 5. Nbd2 {[%clk 0:04:40.4]}
5... d5 {[%clk 0:04:34.6]} 6. Bd3 {[%clk 0:04:34.3]} 6... Bf5 {[%clk 0:04:24.4]}
7. Nxe4 {[%clk 0:04:15.8]} 7... dxe4 {[%clk 0:04:19.7]} 8. Bb5+ {[%clk
0:04:12.2]} 8... Nc6 {[%clk 0:04:14.5]} 9. Nd4 {[%clk 0:03:59.1]} 9... Bd7
{[%clk 0:04:05.1]} 10. Nxc6 {[%clk 0:03:56.3]} 10... bxc6 {[%clk 0:04:03.2]} 11.
Bc4 {[%clk 0:03:55]} 11... Be6 {[%clk 0:03:51.9]} 12. Bxe6 {[%clk 0:03:51]}
12... Qxd1+ {[%clk 0:03:49.6]} 13. Kxd1 {[%clk 0:03:49.9]} 13... fxe6 {[%clk
0:03:48.5]} 14. Ke2 {[%clk 0:03:43.2]} 14... Rd8 {[%clk 0:03:46]} 15. Bf4 {[%clk
0:03:37.6]} 15... Bc5 {[%clk 0:03:42.2]} 16. Rhd1 {[%clk 0:03:32.6]} 16... O-O
{[%clk 0:03:39.8]} 17. Rxd8 {[%clk 0:03:29.7]} 17... Rxd8 {[%clk 0:03:38.4]} 18.
Be3 {[%clk 0:03:13.6]} 18... Bxe3 {[%clk 0:03:30.5]} 19. Kxe3 {[%clk 0:03:11.8]}
19... Kf7 {[%clk 0:03:26.6]} 20. Ke2 {[%clk 0:02:59.2]} 20... Kg6 {[%clk
0:03:18.6]} 21. g4 {[%clk 0:02:42.5]} 21... Kg5 {[%clk 0:03:12.5]} 22. Ke3
{[%clk 0:02:33.7]} 22... Kxg4 {[%clk 0:03:05.7]} 23. Rg1+ {[%clk 0:02:31.1]}
23... Kh3 {[%clk 0:03:04.4]} 24. Rxg7 {[%clk 0:02:29.5]} 24... Kxh2 {[%clk
0:03:02.8]} 25. Rxh7+ {[%clk 0:02:27.3]} 25... Kg2 {[%clk 0:02:59.4]} 26. Re7
{[%clk 0:02:19]} 26... Rf8 {[%clk 0:02:55.5]} 27. Rxe6 {[%clk 0:02:17.8]} 27...
Rxf2 {[%clk 0:02:54]} 28. Rxc6 {[%clk 0:02:05.9]} 28... Rf4 {[%clk 0:02:52.3]}
29. Kxf4 {[%clk 0:02:02.9]} 1-0